fUST/lending_fUST_20250110
["ID","MTS","AMOUNT","RATE_DAILY","PERIOD"]
[348310491,1736441446791,-500.0,0.00021345,3]
[348310493,1736441446814,-430.76,0.00021345,3]
[348310495,1736441446835,-500.0,0.00021345,3]
[348310497,1736441446857,-586.08,0.00021345,3]
[348310499,1736441446879,-500.0,0.00021345,3]
[348310501,1736441446903,-2480.58,0.00021345,3]
[348310503,1736441446924,-500.0,0.00021345,3]
[348310505,1736441446945,-500.0,0.00021346,3]
[348310507,1736441446968,-500.0,0.00021346,3]
[348310509,1736441446988,-500.0,0.00021346,3]
[348310511,1736441447012,-500.0,0.00021346,3]
[348310513,1736441447022,-1477.22,0.00021346,3]
[348310515,1736441447032,-500.0,0.00021346,3]
[348310517,1736441447041,-8436.98,0.00021346,3]
[348310519,1736441447050,-574.55,0.00021346,3]
[348310521,1736441447062,-500.0,0.00021346,3]
[348310523,1736441447071,-500.0,0.00021346,3]
[348310525,1736441447080,-424.36,0.00021346,3]
[348310527,1736441447090,-500.0,0.00021346,3]
[348310529,1736441447099,-1679.83,0.00021347,3]
[348310531,1736441447108,-1609.83,0.00021347,3]
[348310533,1736441447117,-500.0,0.00021347,3]
[348310543,1736441447197,-3218.79,0.00021349,3]
[348310545,1736441447207,-177.376725,0.00021479,2]
[348310547,1736441447217,-10542.20533144,0.00021492,2]
[348310549,1736441447226,-500.0,0.00021618,3]
[348310551,1736441447235,-500.0,0.00021619,3]
[348310553,1736441447245,-500.0,0.00021619,3]
[348310555,1736441447255,-500.0,0.00021619,3]
[348310557,1736441447264,-797.44,0.00021619,2]
[348310559,1736441447274,-500.0,0.00021619,3]
[348310561,1736441447283,-500.0,0.00021619,3]
[348310563,1736441447292,-1152.15,0.00021619,3]
[348310565,1736441447304,-500.0,0.00021619,3]
[348310567,1736441447313,-500.0,0.00021619,3]
[348310569,1736441447322,-586.08,0.00021619,3]
[348310571,1736441447331,-500.0,0.00021619,3]
[348310573,1736441447340,-2480.58,0.00021619,3]
[348310575,1736441447350,-500.0,0.00021619,3]
[348310577,1736441447360,-500.0,0.0002162,3]
[348310579,1736441447371,-500.0,0.0002162,3]
[348310581,1736441447380,-500.0,0.0002162,3]
[348310583,1736441447390,-282.36,0.0002162,3]
[348310585,1736441447399,-1477.22,0.0002162,3]
[348310587,1736441447408,-500.0,0.0002162,3]
[348310589,1736441447417,-8436.98,0.0002162,3]
[348310591,1736441447426,-574.55,0.0002162,3]
[348310593,1736441447436,-500.0,0.0002162,3]
[348310595,1736441447446,-500.0,0.0002162,3]
[348310597,1736441447456,-500.0,0.0002162,3]
[348310599,1736441447468,-1679.83,0.00021621,3]
[348310601,1736441447477,-1609.83,0.00021621,3]
[348310603,1736441447487,-500.0,0.00021621,3]
[348310605,1736441447496,-3218.79,0.00021623,3]
[348310607,1736441447505,-177.376725,0.00021671,2]
[348310609,1736441447515,-420.0,0.00021749,2]
[348310611,1736441447525,-3083.57232741,0.00021796,2]
[348310613,1736441447534,-177.376725,0.00021863,2]
[348310615,1736441447544,-500.0,0.00021892,3]
[348310617,1736441447553,-500.0,0.00021893,3]
[348310619,1736441447562,-500.0,0.00021893,3]
[348310621,1736441447571,-500.0,0.00021893,3]
[348310623,1736441447581,-797.44,0.00021893,2]
[348310625,1736441447590,-500.0,0.00021893,3]
[348310627,1736441447600,-500.0,0.00021893,3]
[348310629,1736441447609,-1152.15,0.00021893,3]
[348310631,1736441447618,-500.0,0.00021893,3]
[348310633,1736441447627,-500.0,0.00021893,3]
[348310635,1736441447636,-586.08,0.00021893,3]
[348310637,1736441447645,-500.0,0.00021893,3]
[348310639,1736441447655,-2480.58,0.00021893,3]
[348310641,1736441447665,-500.0,0.00021893,3]
[348310643,1736441447678,-500.0,0.00021894,3]
[348310645,1736441447687,-500.0,0.00021894,3]
[348310647,1736441447697,-500.0,0.00021894,3]
[348310649,1736441447707,-1477.22,0.00021894,3]
[348310651,1736441447717,-500.0,0.00021894,3]
[348310653,1736441447727,-8436.98,0.00021894,3]
[348310655,1736441447736,-574.55,0.00021894,3]
[348310657,1736441447746,-500.0,0.00021894,3]
[348310659,1736441447755,-500.0,0.00021894,3]
[348310661,1736441447765,-500.0,0.00021894,3]
[348310663,1736441447774,-1679.83,0.00021895,3]
[348310665,1736441447784,-1609.83,0.00021895,3]
[348310667,1736441447794,-500.0,0.00021895,3]
[348310669,1736441447804,-3218.79,0.00021897,3]
[348310671,1736441447814,-2945.0,0.0002197,2]
[348310673,1736441447823,-500.0,0.00021973,2]
[348310675,1736441447833,-13125.8875911,0.00022,2]
[348310677,1736441447842,-48321.92604991,0.00022,2]
[348312433,1736442130545,194.746476,0.00013973,2]
[348312434,1736442358148,-645.15011082,0.000192,2]
[348312435,1736442429119,-3198.99490655,0.000192,2]
[348312436,1736442445105,-630.93872356,0.000192,2]
[348312437,1736442450128,-307.62820861,0.000192,2]
[348312438,1736442451108,-1241.63551393,0.000192,2]
[348312439,1736442545115,-1104.65253653,0.000192,2]
[348312440,1736442545136,-201.5093819,0.00019249,2]
[348312441,1736442545160,-43.06762253,0.00019795,2]
[348312474,1736442632925,-512.52027125,0.000189,2]
[348312476,1736442632935,-3443.32442875,0.000198,2]
[348312478,1736442632947,-1324.29869612,0.000198,2]
[348312482,1736442632967,-500.0,0.00019971,3]
[348312484,1736442632979,-300.0,0.00019971,2]
[348312486,1736442632989,-500.0,0.00019972,3]
[348312488,1736442632999,-500.0,0.00019972,3]
[348312490,1736442633009,-314.60367848,0.00019972,3]
[348312492,1736442633020,-512.5737224,0.00019972,3]
[348312494,1736442633030,-500.0,0.00019972,3]
[348312496,1736442633041,-500.0,0.00019972,3]
[348312498,1736442633051,-500.0,0.00019972,3]
[348312500,1736442633062,-500.0,0.00019972,3]
[348312503,1736442633073,-500.0,0.00019972,3]
[348312505,1736442633082,-500.0,0.00019972,3]
[348312507,1736442633096,-500.0,0.00019972,3]
[348312509,1736442633108,-500.0,0.00019972,3]
[348312511,1736442633119,-500.0,0.00019972,3]
[348312513,1736442633130,-500.0,0.00019972,3]
[348312514,1736442633139,-500.0,0.00019972,3]
[348312516,1736442633149,-387.73011426,0.00019972,3]
[348312520,1736442633163,-112.26988574,0.00019972,3]
[348312523,1736442633173,-531.63,0.00019972,2]
[348312526,1736442633184,-500.0,0.00019972,3]
[348312528,1736442633194,-768.1,0.00019972,3]
[348312532,1736442633205,-460.09036426,0.00019972,2]
[348312535,1736442633218,-67.66963574,0.00019972,2]
[348312538,1736442633228,-500.0,0.00019972,3]
[348312542,1736442633239,-500.0,0.00019972,3]
[348312544,1736442633250,-603.47,0.00019972,3]
[348312546,1736442633260,-500.0,0.00019972,3]
[348312548,1736442633271,-500.0,0.00019972,3]
[348312550,1736442633281,-500.0,0.00019972,3]
[348312552,1736442633290,-500.84492308,0.00019972,3]
[348312554,1736442633300,-500.0,0.00019972,3]
[348312556,1736442633309,-500.0,0.00019972,3]
[348312558,1736442633319,-1674.55,0.00019972,3]
[348312560,1736442633330,-500.0,0.00019972,3]
[348312562,1736442633340,-500.0,0.00019972,3]
[348312564,1736442633354,-500.0,0.00019972,3]
[348312566,1736442633364,-500.0,0.00019972,3]
[348312568,1736442633375,-500.0,0.00019972,3]
[348312570,1736442633385,-500.0,0.00019972,3]
[348312572,1736442633395,-500.0,0.00019972,3]
[348312575,1736442633405,-500.0,0.00019972,3]
[348312577,1736442633416,-500.0,0.00019972,3]
[348312579,1736442633426,-500.0,0.00019972,3]
[348312581,1736442633436,-500.0,0.00019972,3]
[348312583,1736442633446,-500.0,0.00019972,3]
[348312585,1736442633456,-500.0,0.00019972,3]
[348312587,1736442633466,-500.0,0.00019972,3]
[348312589,1736442633476,-29.1978614,0.00019972,3]
[348312591,1736442633488,-470.8021386,0.00019972,3]
[348312593,1736442633499,-624.38123198,0.00019972,3]
[348312599,1736442633544,-6097.79876802,0.00019972,3]
[348312601,1736442633554,-500.0,0.00019972,2]
[348312603,1736442633564,-494.51999569,0.00019972,2]
[348312605,1736442633574,-500.0,0.00019972,2]
[348312607,1736442633585,-219.16348956,0.00019972,2]
[348312609,1736442633598,-500.0,0.00019972,2]
[348312611,1736442633608,-500.0,0.00019972,2]
[348312613,1736442633618,-500.0,0.00019972,2]
[348312615,1736442633627,-500.0,0.00019972,2]
[348312617,1736442633637,-574.71340082,0.00019972,2]
[348312619,1736442633647,-226.0,0.00019972,2]
[348312621,1736442633657,-500.0,0.00019972,2]
[348312623,1736442633667,-500.0,0.00019972,2]
[348312625,1736442633677,-500.0,0.00019972,2]
[348312627,1736442633687,-500.0,0.00019972,2]
[348312629,1736442633697,-500.0,0.00019972,2]
[348312631,1736442633707,-500.0,0.00019972,2]
[348312633,1736442633717,-500.0,0.00019972,2]
[348312635,1736442633726,-500.0,0.00019972,2]
[348312637,1736442633736,-500.0,0.00019972,2]
[348312639,1736442633746,-500.0,0.00019972,2]
[348312641,1736442633755,-500.0,0.00019972,2]
[348312643,1736442633765,-500.0,0.00019972,2]
[348312645,1736442633775,-631.57364907,0.00019972,2]
[348312647,1736442633785,-500.0,0.00019972,2]
[348312649,1736442633799,-500.0,0.00019972,2]
[348312651,1736442633808,-500.0,0.00019972,2]
[348312653,1736442633819,-500.0,0.00019972,2]
[348312655,1736442633829,-621.88216638,0.00019972,2]
[348312657,1736442633839,-500.0,0.00019972,2]
[348312659,1736442633851,-162.136,0.00019973,2]
[348312661,1736442633860,-500.0,0.00019973,3]
[348312663,1736442633869,-500.0,0.00019973,3]
[348312665,1736442633879,-500.0,0.00019973,3]
[348312667,1736442633890,-500.0,0.00019973,3]
[348312669,1736442633900,-500.0,0.00019973,3]
[348312671,1736442633909,-500.0,0.00019973,3]
[348312673,1736442633919,-500.0,0.00019973,3]
[348312675,1736442633930,-500.0,0.00019973,3]
[348312678,1736442633940,-500.0,0.00019973,3]
[348312679,1736442633949,-500.0,0.00019973,3]
[348312682,1736442633960,-24.941661,0.00019973,3]
[348312684,1736442633974,-475.058339,0.00019973,3]
[348312686,1736442633984,-500.0,0.00019973,3]
[348312688,1736442633994,-500.0,0.00019973,3]
[348312690,1736442634005,-500.0,0.00019973,3]
[348312692,1736442634015,-508.92620435,0.00019973,3]
[348312694,1736442634026,-500.24,0.00019973,3]
[348312696,1736442634036,-500.0,0.00019973,3]
[348312698,1736442634046,-500.0,0.00019973,3]
[348312700,1736442634056,-500.0,0.00019973,3]
[348312702,1736442634066,-500.0,0.00019973,3]
[348312704,1736442634075,-500.0,0.00019973,3]
[348312706,1736442634085,-500.0,0.00019973,3]
[348312708,1736442634096,-500.0,0.00019973,3]
[348312710,1736442634107,-500.0,0.00019973,3]
[348312712,1736442634118,-500.0,0.00019973,3]
[348312714,1736442634128,-500.0,0.00019973,3]
[348312716,1736442634140,-500.0,0.00019973,3]
[348312718,1736442634150,-500.0,0.00019973,3]
[348312720,1736442634160,-500.0,0.00019973,3]
[348312722,1736442634171,-500.0,0.00019973,3]
[348312724,1736442634181,-500.0,0.00019973,3]
[348312726,1736442634191,-500.0,0.00019974,3]
[348312728,1736442634200,-500.0,0.00019974,3]
[348312730,1736442634210,-184.83942727,0.00019974,3]
[348312732,1736442634220,-500.0,0.00019974,3]
[348312734,1736442634230,-150.38400214,0.00019974,3]
[348312737,1736442634242,-349.61599786,0.00019974,3]
[348312739,1736442634252,-500.0,0.00019974,3]
[348312741,1736442634262,-500.0,0.00019974,3]
[348312743,1736442634271,-501.62613012,0.00019974,3]
[348312745,1736442634282,-500.0,0.00019974,3]
[348312747,1736442634292,-500.0,0.00019974,3]
[348312749,1736442634300,-454.67206769,0.00019974,3]
[348312751,1736442634310,-475.14978709,0.00019974,3]
[348313183,1736442638849,-24.85021291,0.00019974,3]
[348313184,1736442638858,-500.0,0.00019974,3]
[348313185,1736442638868,-500.0,0.00019974,3]
[348313186,1736442638877,-500.0,0.00019974,3]
[348313187,1736442638886,-500.0,0.00019974,3]
[348313189,1736442638896,-500.0,0.00019974,3]
[348313190,1736442638905,-500.0,0.00019974,3]
[348313192,1736442638914,-500.0,0.00019974,3]
[348313195,1736442638924,-500.0,0.00019974,3]
[348313199,1736442638933,-500.0,0.00019974,3]
[348313201,1736442638944,-383.64978709,0.00019974,3]
[348313205,1736442638956,-116.35021291,0.00019974,3]
[348313209,1736442638966,-538.89284232,0.00019974,3]
[348313211,1736442638975,-174.98318931,0.00019974,3]
[348313213,1736442638985,-500.0,0.00019974,3]
[348313216,1736442638995,-500.0,0.00019974,3]
[348313219,1736442639005,-598.11,0.00019974,3]
[348313222,1736442639015,-500.0,0.00019974,3]
[348313224,1736442639025,-505.01238238,0.00019974,3]
[348313226,1736442639035,-500.0,0.00019974,3]
[348313228,1736442639045,-500.0,0.00019974,3]
[348313230,1736442639054,-500.0,0.00019974,3]
[348313232,1736442639064,-500.0,0.00019974,3]
[348313234,1736442639073,-500.0,0.00019974,3]
[348313236,1736442639083,-500.0,0.00019974,3]
[348313238,1736442639093,-500.0,0.00019974,3]
[348313240,1736442639106,-500.0,0.00019974,3]
[348313242,1736442639116,-306.2223477,0.00019974,3]
[348313244,1736442639127,-500.0,0.00019974,3]
[348313246,1736442639136,-441.5777367,0.00019974,3]
[348313248,1736442639146,-500.0,0.00019974,3]
[348313250,1736442639155,-500.0,0.00019974,3]
[348313252,1736442639165,-500.0,0.00019974,3]
[348313254,1736442639175,-500.0,0.00019974,3]
[348313256,1736442639184,-243.13095438,0.00019974,3]
[348313258,1736442639193,-500.0,0.00019974,3]
[348313260,1736442639202,-500.0,0.00019974,3]
[348313262,1736442639212,-500.0,0.00019974,3]
[348313264,1736442639221,-500.0,0.00019974,3]
[348313266,1736442639231,-500.0,0.00019974,3]
[348313268,1736442639240,-500.0,0.00019974,3]
[348313270,1736442639249,-500.0,0.00019974,3]
[348313272,1736442639259,-500.0,0.00019974,3]
[348313274,1736442639271,-500.0,0.00019974,3]
[348313276,1736442639280,-500.0,0.00019974,3]
[348313278,1736442639289,-507.77024554,0.00019974,3]
[348313280,1736442639298,-500.0,0.00019974,3]
[348313282,1736442639307,-500.0,0.00019974,3]
[348313284,1736442639316,-500.0,0.00019974,3]
[348313286,1736442639326,-500.0,0.00019974,3]
[348313288,1736442639335,-500.0,0.00019974,3]
[348313290,1736442639345,-500.0,0.00019974,3]
[348313292,1736442639357,-500.0,0.00019974,3]
[348313294,1736442639367,-491.92957305,0.00019974,3]
[348313296,1736442639376,-500.0,0.00019974,3]
[348313298,1736442639386,-500.0,0.00019974,3]
[348313300,1736442639395,-500.0,0.00019974,3]
[348313302,1736442639405,-500.0,0.00019974,3]
[348313304,1736442639414,-500.0,0.00019974,3]
[348313306,1736442639423,-500.0,0.00019974,3]
[348313309,1736442639433,-500.0,0.00019974,3]
[348313310,1736442639442,-500.0,0.00019974,3]
[348313312,1736442639452,-500.0,0.00019974,3]
[348313314,1736442639462,-500.0,0.00019974,3]
[348313316,1736442639471,-500.0,0.00019974,3]
[348313318,1736442639480,-555.61729815,0.00019974,3]
[348313321,1736442639490,-500.0,0.00019974,3]
[348313323,1736442639500,-235.0,0.00019974,3]
[348313324,1736442639509,-500.0,0.00019975,3]
[348313326,1736442639518,-498.26592187,0.00019975,3]
[348313328,1736442639527,-355.65125752,0.00019975,3]
[348313330,1736442639536,-316.26057444,0.00019975,3]
[348313332,1736442639545,-500.0,0.00019975,3]
[348313334,1736442639555,-500.0,0.00019975,3]
[348313336,1736442639564,-500.0,0.00019975,3]
[348313338,1736442639573,-500.0,0.00019975,3]
[348313340,1736442639583,-500.0,0.00019975,3]
[348313342,1736442639592,-500.0,0.00019975,3]
[348313344,1736442639603,-500.0,0.00019975,3]
[348313346,1736442639613,-500.0,0.00019975,3]
[348313348,1736442639622,-500.0,0.00019975,3]
[348313350,1736442639631,-500.0,0.00019975,3]
[348313352,1736442639641,-500.0,0.00019975,3]
[348313354,1736442639650,-500.0,0.00019975,3]
[348313356,1736442639659,-500.0,0.00019975,3]
[348313358,1736442639667,-275.72350259,0.00019976,3]
[348313360,1736442639680,-490.08307745,0.00019976,3]
[348313440,1736442640808,-500.0,0.00019972,3]
[348313441,1736442640818,-368.78771321,0.00019976,3]
[348313781,1736442643680,-500.0,0.00019973,3]
[348313784,1736442643690,-0.07570675,0.00019976,3]
[348313786,1736442643700,-920.17,0.00019976,3]
[348313788,1736442643709,-500.0,0.00019976,3]
[348313790,1736442643719,-500.0,0.00019976,3]
[348313792,1736442643728,-500.0,0.00019976,3]
[348313794,1736442643737,-500.0,0.00019976,3]
[348313796,1736442643747,-500.0,0.00019976,3]
[348313798,1736442643756,-500.0,0.00019976,3]
[348313800,1736442643765,-500.0,0.00019976,3]
[348313802,1736442643774,-500.0,0.00019976,3]
[348313804,1736442643784,-500.0,0.00019976,3]
[348313806,1736442643797,-863.24,0.00019976,3]
[348313808,1736442643807,-500.0,0.00019976,3]
[348313810,1736442643816,-2256.11,0.00019976,3]
[348313812,1736442643826,-500.0,0.00019976,3]
[348313814,1736442643836,-4678.0,0.0002,2]
[348313816,1736442643846,-151.53278215,0.0002,2]
[348313818,1736442643855,-500.0,0.00020245,3]
[348313820,1736442643866,-248.35,0.00020246,3]
[348313822,1736442643876,-500.0,0.00020246,3]
[348313824,1736442643886,-500.0,0.00020246,3]
[348313826,1736442643895,-500.0,0.00020246,3]
[348313828,1736442643905,-500.0,0.00020246,3]
[348313830,1736442643914,-531.63,0.00020246,2]
[348313832,1736442643924,-768.1,0.00020246,3]
[348313834,1736442643933,-500.0,0.00020246,3]
[348313836,1736442643942,-456.24,0.00020246,3]
[348313838,1736442643951,-1674.55,0.00020246,3]
[348313840,1736442643962,-500.0,0.00020246,3]
[348313842,1736442643972,-284.18,0.00020246,3]
[348313844,1736442643981,-500.0,0.00020246,3]
[348313846,1736442643990,-500.0,0.00020246,3]
[348313847,1736442643999,-6722.18,0.00020246,3]
[348313849,1736442644009,-500.0,0.00020246,3]
[348313851,1736442644019,-170.98,0.00020247,3]
[348313854,1736442644028,-500.0,0.00020247,3]
[348313856,1736442644037,-500.0,0.00020247,3]
[348313858,1736442644047,-500.0,0.00020247,3]
[348313860,1736442644056,-500.0,0.00020247,3]
[348313862,1736442644066,-500.0,0.00020247,3]
[348313864,1736442644076,-500.0,0.00020247,3]
[348313866,1736442644086,-500.0,0.00020247,3]
[348313868,1736442644095,-500.0,0.00020247,3]
[348313870,1736442644104,-500.0,0.00020248,3]
[348313872,1736442644114,-480.83110894,0.00020248,3]
[348313874,1736442644124,-500.0,0.00020248,3]
[348313876,1736442644133,-500.0,0.00020248,3]
[348313878,1736442644142,-500.0,0.00020248,3]
[348313880,1736442644152,-500.0,0.00020248,3]
[348313882,1736442644161,-500.0,0.00020248,3]
[348313884,1736442644171,-509.12611066,0.00020248,3]
[348313886,1736442644181,-500.0,0.00020248,3]
[348313888,1736442644190,-628.82,0.00020249,3]
[348313890,1736442644200,-500.0,0.00020249,3]
[348313891,1736442644209,-1134.67,0.0002025,3]
[348313893,1736442644218,-920.17,0.0002025,3]
[348313895,1736442644228,-500.0,0.0002025,3]
[348313897,1736442644238,-500.0,0.0002025,3]
[348313899,1736442644247,-500.0,0.0002025,3]
[348313901,1736442644256,-500.0,0.0002025,3]
[348313903,1736442644265,-500.0,0.0002025,3]
[348313905,1736442644275,-863.24,0.0002025,3]
[348313907,1736442644284,-500.0,0.0002025,3]
[348313909,1736442644293,-2256.11,0.0002025,3]
[348313911,1736442644303,-194.746476,0.00020447,2]
[348313913,1736442644312,-500.0,0.00020519,3]
[348313915,1736442644322,-605.72,0.0002052,3]
[348313917,1736442644331,-500.0,0.0002052,3]
[348313919,1736442644340,-500.0,0.0002052,3]
[348313921,1736442644350,-500.0,0.0002052,3]
[348313923,1736442644359,-531.63,0.0002052,2]
[348313925,1736442644369,-668.2584626,0.0002052,3]
[348313927,1736442644381,-99.8415374,0.0002052,3]
[348313929,1736442644391,-500.0,0.0002052,3]
[348313931,1736442644401,-1674.55,0.0002052,3]
[348313933,1736442644410,-500.0,0.0002052,3]
[348313935,1736442644420,-500.0,0.0002052,3]
[348313937,1736442644429,-6722.18,0.0002052,3]
[348313939,1736442644438,-500.0,0.0002052,3]
[348313941,1736442644448,-177.376725,0.00020521,2]
[348313943,1736442644458,-500.0,0.00020521,3]
[348313945,1736442644467,-500.0,0.00020521,3]
[348313947,1736442644477,-289.21,0.00020521,3]
[348313949,1736442644487,-199.35,0.00020521,3]
[348313951,1736442644497,-500.0,0.00020521,3]
[348313953,1736442644507,-500.0,0.00020522,3]
[348313963,1736442644516,-500.0,0.00020522,3]
[348313965,1736442644598,-500.0,0.00020522,3]
[348313967,1736442644609,-232.91,0.00020522,3]
[348313969,1736442644620,-311.34723638,0.00020522,3]
[348313970,1736442644629,-199.79,0.00020523,3]
[348313972,1736442644639,-1134.67,0.00020524,3]
[348313974,1736442644649,-920.17,0.00020524,3]
[348313976,1736442644659,-284.87,0.00020524,3]
[348313978,1736442644669,-279.7342489,0.00020524,3]
[348313980,1736442644680,-500.0,0.00020524,3]
[348313982,1736442644689,-500.0,0.00020524,3]
[348313984,1736442644700,-863.24,0.00020524,3]
[348313986,1736442644710,-500.0,0.00020524,3]
[348313988,1736442644719,-2256.11,0.00020524,3]
[348313990,1736442644728,-500.0,0.00020547,3]
[348313992,1736442644738,-500.0,0.00020547,3]
[348313994,1736442644748,-500.0,0.00020547,3]
[348313996,1736442644758,-319.04650122,0.00020793,2]
[348313998,1736442644767,-500.0,0.00020793,3]
[348314000,1736442644777,-500.0,0.00020794,3]
[348314002,1736442644788,-500.0,0.00020794,3]
[348314004,1736442644802,-500.0,0.00020794,3]
[348314007,1736442644812,-531.63,0.00020794,2]
[348314009,1736442644823,-768.1,0.00020794,3]
[348314011,1736442644833,-500.0,0.00020794,3]
[348314012,1736442644845,-1674.55,0.00020794,3]
[348314014,1736442644856,-500.0,0.00020794,3]
[348314017,1736442644867,-500.0,0.00020794,3]
[348314019,1736442644877,-6722.18,0.00020794,3]
[348314021,1736442644888,-500.0,0.00020794,3]
[348314023,1736442644898,-500.0,0.00020795,3]
[348314025,1736442644907,-500.0,0.00020795,3]
[348314027,1736442644918,-500.0,0.00020795,3]
[348314029,1736442644927,-500.0,0.00020796,3]
[348314031,1736442644936,-438.19331923,0.00020796,3]
[348314198,1736442646798,-21.62692024,0.00020796,3]
[348314200,1736442646809,-40.17976053,0.00020796,3]
[348314203,1736442646819,-620.55,0.00020796,3]
[348314204,1736442646830,-500.0,0.00020797,3]
[348314207,1736442646840,-1134.67,0.00020798,3]
[348314208,1736442646849,-920.17,0.00020798,3]
[348314211,1736442646859,-500.0,0.00020798,3]
[348314213,1736442646870,-500.0,0.00020798,3]
[348314215,1736442646879,-863.24,0.00020798,3]
[348314217,1736442646889,-500.0,0.00020798,3]
[348314219,1736442646899,-2256.11,0.00020798,3]
[348314221,1736442646908,-500.0,0.00021067,3]
[348314223,1736442646918,-500.0,0.00021068,3]
[348314225,1736442646928,-500.0,0.00021068,3]
[348314227,1736442646938,-531.63,0.00021068,2]
[348314229,1736442646948,-500.0,0.00021068,3]
[348314231,1736442646958,-768.1,0.00021068,3]
[348314233,1736442646967,-454.03,0.00021068,3]
[348314235,1736442646977,-488.10096736,0.00021068,3]
[348314237,1736442646988,-282.651,0.00021068,3]
[348314239,1736442646999,-472.59,0.00021068,3]
[348314241,1736442647011,-431.20803264,0.00021068,3]
[348314243,1736442647020,-500.0,0.00021068,3]
[348314245,1736442647029,-500.0,0.00021068,3]
[348314247,1736442647039,-6022.58895308,0.00021068,3]
[348314249,1736442647050,-699.59104692,0.00021068,3]
[348314251,1736442647059,-500.0,0.00021068,3]
[348314253,1736442647070,-500.0,0.00021069,3]
[348314256,1736442647083,-648.46828429,0.00021069,3]
[348314258,1736442647097,-627.37,0.00021069,3]
[348314261,1736442647110,-500.0,0.0002107,3]
[348314263,1736442647123,-193.7,0.0002107,3]
[348314265,1736442647135,-500.0,0.00021071,3]
[348314267,1736442647145,-1134.67,0.00021072,3]
[348314269,1736442647156,-920.17,0.00021072,3]
[348314272,1736442647169,-500.0,0.00021072,3]
[348314274,1736442647180,-61.51224105,0.00021072,3]
[348314276,1736442647195,-801.72775895,0.00021072,3]
[348314279,1736442647208,-500.0,0.00021072,3]
[348314281,1736442647220,-1491.54464311,0.00021072,3]
[348314283,1736442647234,-764.56535689,0.00021072,3]
[348314286,1736442647245,-1598.41549481,0.000213,2]
[348316042,1736443011742,175.271828,0.00013973,2]
[348316043,1736443421983,232.80219229,0.00025,120]
[348316051,1736443627177,-341.68018084,0.00018968,2]
[348316052,1736443627200,-1284.14536276,0.00019872,2]
[348316053,1736443627226,-300.0,0.00019969,2]
[348316054,1736443627249,-500.0,0.0001997,3]
[348316055,1736443627272,-256.97022534,0.0001997,3]
[348316057,1736443631153,-243.02977466,0.0001997,3]
[348316058,1736443631177,-500.0,0.0001997,3]
[348316059,1736443631200,-281.7924307,0.0001997,3]
[348316060,1736443637104,-218.2075693,0.0001997,3]
[348316061,1736443637127,-367.00515623,0.0001997,3]
[348316069,1736443745089,-2658.31271938,0.00017,7]
[348316070,1736443745113,-689.63390677,0.0001881,2]
[348316071,1736443745135,-2299.09142756,0.00019,2]
[348316086,1736443832179,-502.63721429,0.000189,2]
[348316087,1736443832190,-239.88174,0.00018971,2]
[348316088,1736443832200,-129.72849521,0.00019,2]